bitfinex-derivatives/quotes_BTCF0:USTF0_20250718
["timestamp","ask_amount","ask_price","bid_price","bid_amount"]
[1752877591280,0.19955196,118060.0,118050.0,1.85252876]
[1752877591583,0.30566747,118060.0,118050.0,1.85252876]
[1752877592080,0.33008747,118060.0,118050.0,1.85252876]
[1752877592274,0.22397196,118060.0,118050.0,1.85252876]
[1752877592481,0.22397196,118060.0,118050.0,1.55314207]
[1752877592883,0.22397196,118060.0,118050.0,1.85252876]
[1752877593578,0.22397196,118060.0,118050.0,1.55026207]
[1752877593882,0.22397196,118060.0,118050.0,0.79698207]
[1752877594085,0.22397196,118060.0,118050.0,1.54986207]
[1752877594280,0.63953921,118060.0,118050.0,0.49759538]
[1752877594477,0.93528433,118060.0,118050.0,0.79698287]
[1752877594682,0.7534237,118060.0,118050.0,1.54874287]
[1752877594878,0.82916882,118060.0,118050.0,1.54874287]
[1752877595278,0.82916882,118060.0,118050.0,0.49759688]
[1752877595483,0.82916882,118060.0,118050.0,1.37920767]
[1752877595884,0.7534237,118060.0,118050.0,1.37920767]
[1752877596085,0.82915558,118060.0,118050.0,1.37856767]
[1752877596388,0.82915558,118060.0,118050.0,0.62768767]
[1752877596882,0.7534237,118060.0,118050.0,1.37744767]
[1752877597080,0.7534237,118060.0,118050.0,1.37704767]
[1752877597290,0.7534237,118060.0,118050.0,1.54634357]
[1752877597582,0.7534237,118060.0,118050.0,0.32830098]
[1752877597802,0.4839759,118050.0,118040.0,0.82948619]
[1752877598087,0.71226786,118050.0,118040.0,1.57728619]
[1752877599091,0.71226786,118050.0,118040.0,1.40898669]
[1752877599092,0.78799974,118050.0,118040.0,1.40898669]
[1752877599291,0.78799974,118050.0,118040.0,1.57829699]
[1752877599589,0.78799974,118050.0,118040.0,1.40898669]
[1752877600287,0.78799974,118050.0,118040.0,1.57829749]
[1752877600488,0.78799974,118050.0,118040.0,1.57729749]
[1752877600889,0.71326786,118050.0,118040.0,1.57729749]
[1752877601090,0.78895617,118050.0,118040.0,1.50863848]
[1752877602585,0.78895617,118050.0,118040.0,0.76083848]
[1752877602790,0.78895617,118050.0,118040.0,1.50427848]
[1752877603290,0.78895617,118050.0,118040.0,1.50319848]
[1752877604191,0.71326786,118050.0,118040.0,1.50319848]
[1752877604991,0.71326786,118050.0,118040.0,1.20381179]
[1752877605187,0.71326786,118050.0,118040.0,1.41165156]
[1752877605491,0.81938337,118050.0,118040.0,1.21105749]
[1752877605892,0.81938337,118050.0,118040.0,1.20769749]
[1752877606093,0.81938337,118050.0,118040.0,1.16192383]
[1752877607398,0.81938337,118050.0,118040.0,0.86253714]
[1752877607693,0.81938337,118050.0,118040.0,1.16192383]
[1752877608896,0.81938337,118050.0,118040.0,1.15860383]
[1752877609100,0.81938337,118050.0,118040.0,1.51940383]
[1752877609298,0.71326786,118050.0,118040.0,1.51940383]
[1752877610301,0.4839911,118040.0,118030.0,0.3608]
[1752877610503,0.4840054,118030.0,118020.0,0.66018669]
[1752877610795,0.7982625,118030.0,118020.0,1.03202669]
[1752877611000,0.72229736,118030.0,118020.0,1.03202669]
[1752877611293,0.1693398,118020.0,118010.0,2.08620459]
[1752877611495,0.51231176,118020.0,118010.0,2.81808459]
[1752877612097,0.58831879,118020.0,118010.0,2.81808459]
[1752877613003,0.65673136,118020.0,118010.0,2.5186979]
[1752877613204,0.65673136,118020.0,118010.0,2.81808459]
[1752877613400,0.65773136,118020.0,118010.0,2.81808459]
[1752877614213,0.58172433,118020.0,118010.0,2.81808459]
[1752877614798,0.58172433,118020.0,118010.0,1.64232459]
[1752877615000,0.65778974,118020.0,118010.0,1.3429379]
[1752877615206,0.65778974,118020.0,118010.0,1.64232459]
[1752877615804,0.58172433,118020.0,118010.0,1.64232459]
[1752877616104,0.65780556,118020.0,118010.0,1.64232459]
[1752877619207,0.65780556,118020.0,118010.0,1.59998679]
[1752877619406,0.58172433,118020.0,118010.0,1.2953201]
[1752877619601,0.79172433,118020.0,118010.0,0.5301541]
[1752877619799,0.81078192,118020.0,118010.0,1.2523141]
[1752877620108,0.81078192,118020.0,118010.0,1.55170079]
[1752877620709,0.81078192,118020.0,118010.0,0.82954079]
[1752877620905,0.81078192,118020.0,118010.0,1.55174079]
[1752877621504,0.81078192,118020.0,118010.0,1.19094079]
[1752877622010,0.8716266,118020.0,118010.0,1.18982079]
[1752877622510,0.8716266,118020.0,118010.0,1.02046669]
[1752877622704,0.8716266,118020.0,118010.0,0.72108]
[1752877622909,0.8716266,118020.0,118010.0,0.8904341]
[1752877623112,0.8716266,118020.0,118010.0,0.72108]
[1752877623314,0.8716266,118020.0,118010.0,0.8904341]
[1752877623611,0.8716266,118020.0,118010.0,0.72108]
[1752877623813,0.8716266,118020.0,118010.0,1.18982079]
[1752877625806,0.8716266,118020.0,118010.0,1.02046669]
[1752877626013,0.8716266,118020.0,118010.0,0.72108]
[1752877626507,0.81078192,118020.0,118010.0,0.72108]
[1752877626812,1.24766315,118020.0,118010.0,0.67529543]
[1752877627108,1.24766315,118020.0,118010.0,0.84464953]
[1752877627309,0.2911641,118010.0,118000.0,0.91422649]
[1752877627508,0.69408606,118010.0,118000.0,0.5724981]
[1752877627709,0.3137628,117990.0,117980.0,1.92534323]
[1752877627910,0.56500537,117990.0,117980.0,2.80908603]
[1752877628614,0.56500537,117990.0,117980.0,2.09472603]
[1752877629116,0.56500537,117990.0,117980.0,2.80760603]
[1752877629609,0.50411476,117990.0,117980.0,2.09472603]
[1752877629911,0.50411476,117990.0,117980.0,2.80764603]
[1752877630114,0.54411476,117990.0,117980.0,2.80234689]
[1752877630309,0.54411476,117990.0,117980.0,1.47454669]
[1752877630513,0.60500537,117990.0,117980.0,1.88348]
[1752877630713,0.60600537,117990.0,117980.0,1.88348]
[1752877630909,0.60600537,117990.0,117980.0,1.17216]
[1752877631115,0.54511476,117990.0,117980.0,1.88316]
[1752877631414,0.60595503,117990.0,117980.0,1.88316]
[1752877632013,0.60595503,117990.0,117980.0,2.18254669]
[1752877632214,0.60595503,117990.0,117980.0,2.35090389]
[1752877632414,0.60495503,117990.0,117980.0,2.35090389]
[1752877632609,0.60695503,117990.0,117980.0,2.35090389]
[1752877633416,0.60695503,117990.0,117980.0,2.71170389]
[1752877634017,0.60795503,117990.0,117980.0,2.71170389]
[1752877635618,0.52914503,117990.0,117980.0,2.71170389]
[1752877635913,0.25419223,117990.0,117980.0,2.71170389]
[1752877636118,0.09213223,117990.0,117980.0,2.4123172]
[1752877636418,0.09213223,117990.0,117980.0,2.71170389]
[1752877636607,0.03129196,117990.0,117980.0,2.71170389]
[1752877637207,0.03029196,117990.0,117980.0,2.71170389]
[1752877637611,0.03129196,117990.0,117980.0,2.71170389]
[1752877638013,0.03129196,117990.0,117980.0,2.71270389]
[1752877638214,0.03129196,117990.0,117980.0,2.4133172]
[1752877638719,0.03129196,117990.0,117980.0,2.71270389]
[1752877638918,0.03129196,117990.0,117980.0,2.4133172]
[1752877639117,0.03129196,117990.0,117980.0,2.71270389]
[1752877639520,0.06384027,117990.0,117980.0,2.71270389]
[1752877639919,0.09213223,117990.0,117980.0,3.07350389]
[1752877640427,0.37494503,117990.0,117980.0,3.07350389]
[1752877641421,0.20556223,117990.0,117980.0,3.07350389]
[1752877644623,0.14472196,117990.0,117980.0,3.07350389]
[1752877646929,0.14472196,117990.0,117980.0,3.00171602]
[1752877647225,0.06084027,118000.0,117990.0,0.1693828]
[1752877647525,0.06084027,118000.0,117990.0,0.98538044]
[1752877648426,0.06184027,118000.0,117990.0,0.98538044]
[1752877649424,0.28737139,118020.0,117990.0,1.06599764]
[1752877649622,0.16355139,118020.0,118010.0,1.11855292]
[1752877649825,0.16355139,118020.0,118010.0,1.34868541]
[1752877650318,0.28737139,118020.0,118010.0,1.34868541]
[1752877651323,0.21129016,118020.0,118010.0,1.34868541]
[1752877652027,0.21129016,118020.0,118010.0,1.35168541]
[1752877652230,0.21129016,118020.0,118010.0,1.35268541]
[1752877653027,0.15781264,118050.0,118010.0,1.43079764]
[1752877653226,0.07820159,118060.0,118050.0,0.2008767]
[1752877653427,0.27102399,118060.0,118050.0,1.84164882]
[1752877653622,0.62135559,118060.0,118050.0,1.2039]
[1752877653830,0.62135559,118060.0,118050.0,2.0649967]
[1752877654032,0.98215559,118060.0,118050.0,1.2039]
[1752877654227,0.62135559,118060.0,118050.0,2.12285882]
[1752877654436,0.98215559,118060.0,118050.0,1.2039]
[1752877654637,0.62135559,118060.0,118050.0,2.70190552]
[1752877655232,0.69016608,118060.0,118050.0,2.01094552]
[1752877655425,0.74014608,118060.0,118050.0,2.70166552]
[1752877656231,0.74314608,118060.0,118050.0,2.70166552]
[1752877657932,0.12382,118080.0,118050.0,2.53236882]
[1752877658234,0.3665937,118080.0,118070.0,0.83859682]
[1752877658424,0.3665937,118080.0,118070.0,1.52727682]
[1752877658628,0.3779737,118080.0,118070.0,1.16647682]
[1752877658831,0.4876937,118080.0,118070.0,0.99720882]
[1752877659032,0.4876937,118080.0,118070.0,1.16647682]
[1752877659233,0.50746775,118080.0,118070.0,1.16647682]
[1752877659732,0.50746775,118080.0,118070.0,1.16747682]
[1752877659936,0.50746775,118080.0,118070.0,0.99820882]
[1752877660338,0.50746775,118080.0,118070.0,1.16747682]
[1752877660633,0.72746775,118080.0,118070.0,0.03258]
[1752877660835,0.72746775,118080.0,118070.0,0.68772]
[1752877661134,1.37648241,118080.0,118070.0,0.68772]
[1752877661342,1.44439997,118080.0,118070.0,0.69072]
[1752877661735,1.44439997,118080.0,118070.0,0.68972]
[1752877662132,1.21680115,118080.0,118070.0,0.72114]
[1752877662443,0.73490115,118080.0,118070.0,1.16435682]
[1752877662636,0.56564745,118080.0,118070.0,1.16435682]
[1752877662842,0.28503161,118080.0,118070.0,1.52515682]
[1752877663042,0.23505161,118080.0,118070.0,1.52515682]
[1752877663243,0.40430531,118080.0,118070.0,1.52515682]
[1752877663441,0.38076531,118080.0,118070.0,1.52615682]
[1752877663737,0.46566531,118080.0,118070.0,1.16535682]
[1752877663937,0.57538531,118080.0,118070.0,0.99608882]
[1752877664136,1.15618531,118080.0,118070.0,0.03258]
[1752877664341,1.44439997,118080.0,118070.0,0.68464]
[1752877664636,1.44439997,118080.0,118070.0,0.68452]
[1752877664939,0.2480572,118070.0,118050.0,0.56975823]
[1752877665134,0.4641824,118060.0,118050.0,0.2431871]
[1752877665336,0.48395645,118060.0,118050.0,0.9263071]
[1752877665540,0.48395645,118060.0,118050.0,0.8839849]
[1752877665742,0.50749645,118060.0,118050.0,0.8839849]
[1752877666137,0.71749645,118060.0,118050.0,0.002]
[1752877666337,0.71749645,118060.0,118050.0,0.68436]
[1752877666641,1.07829645,118060.0,118050.0,0.68516]
[1752877666841,1.13891229,118060.0,118050.0,0.68516]
[1752877667043,1.13891229,118060.0,118050.0,0.003]
[1752877667241,1.13891229,118060.0,118050.0,0.68492]
[1752877667943,1.13891229,118060.0,118050.0,0.68392]
[1752877668546,1.07829645,118060.0,118050.0,0.68392]
[1752877669741,1.07829645,118060.0,118050.0,0.8532167]
[1752877671042,1.07829645,118060.0,118050.0,0.8512167]
[1752877671242,1.13886373,118060.0,118050.0,0.8512167]
[1752877671742,1.13886373,118060.0,118050.0,0.8827967]
[1752877672345,1.07829645,118060.0,118050.0,0.8827967]
[1752877674448,1.15400607,118060.0,118050.0,0.8827967]
[1752877675647,1.15400607,118060.0,118050.0,0.7135]
[1752877676349,1.15400607,118060.0,118050.0,0.66772747]
[1752877677045,1.15400607,118060.0,118050.0,0.83702417]
[1752877678138,1.15400607,118060.0,118050.0,0.81774022]
[1752877679248,1.15400607,118060.0,118050.0,0.74908086]
[1752877679649,1.07829645,118060.0,118050.0,0.73517417]
[1752877679848,1.07829645,118060.0,118050.0,0.56587747]
[1752877680248,1.07829645,118060.0,118050.0,0.73517417]
[1752877680748,1.18432004,118060.0,118050.0,0.56587747]
[1752877681251,1.07829645,118060.0,118050.0,0.56587747]
[1752877681457,1.07829645,118060.0,118050.0,0.73517417]
[1752877681752,0.30582623,118060.0,118050.0,1.14198417]
[1752877681948,0.18207577,118070.0,118060.0,0.1692824]
[1752877682147,0.14769092,118080.0,118070.0,0.169268]
[1752877682346,0.50849092,118080.0,118070.0,0.43574593]
[1752877682545,0.14769092,118080.0,118070.0,1.46834593]
[1752877683153,0.25611218,118080.0,118070.0,0.79654593]
[1752877683354,0.25611218,118080.0,118070.0,0.43574593]
[1752877683355,0.31694462,118080.0,118070.0,0.43574593]
[1752877683555,0.31694462,118080.0,118070.0,1.46774593]
[1752877683755,0.25611218,118080.0,118070.0,1.46774593]
[1752877684157,0.25611218,118080.0,118070.0,1.46874593]
[1752877684351,0.25611218,118080.0,118070.0,1.10794593]
[1752877684652,0.80552218,118080.0,118070.0,0.004]
[1752877684856,0.80552218,118080.0,118070.0,0.844188]
[1752877684857,0.81735218,118080.0,118070.0,0.844188]
[1752877685753,1.40607011,118080.0,118070.0,0.675]
[1752877686149,1.40607011,118080.0,118070.0,0.65571851]
[1752877686456,1.21564436,118080.0,118070.0,0.65571851]
[1752877686846,1.21564436,118080.0,118070.0,0.65771851]
[1752877687355,1.21564436,118080.0,118070.0,0.82498661]
[1752877687356,1.13959218,118080.0,118070.0,0.82498661]
[1752877687556,1.13959218,118080.0,118070.0,0.65571851]
[1752877687759,1.13959218,118080.0,118070.0,0.82498661]
[1752877688154,1.21564436,118080.0,118070.0,0.65571851]
[1752877688350,0.85484436,118080.0,118070.0,1.09146454]
[1752877688550,0.77879218,118080.0,118070.0,1.09146454]
[1752877689252,1.13959218,118080.0,118070.0,1.09246454]
[1752877689451,1.13959218,118080.0,118070.0,0.92319644]
[1752877689649,0.77879218,118080.0,118070.0,0.82598651]
[1752877689960,1.13959218,118080.0,118070.0,0.82598651]
[1752877690161,1.21664436,118080.0,118070.0,0.82598651]
[1752877690558,1.21664436,118080.0,118070.0,0.001]
[1752877690863,1.19770344,118080.0,118070.0,0.6682]
[1752877691071,1.19770344,118080.0,118070.0,0.837468]
[1752877691263,1.19770344,118080.0,118070.0,0.6682]
[1752877691561,1.19770344,118080.0,118070.0,0.169268]
[1752877691759,1.19770344,118080.0,118070.0,0.6668]
[1752877691959,1.19770344,118080.0,118070.0,0.598151]
[1752877692161,1.12165126,118080.0,118070.0,0.598151]
[1752877692562,1.12165126,118080.0,118070.0,0.767419]
[1752877692767,1.19766614,118080.0,118070.0,0.767419]
[1752877692970,1.19766614,118080.0,118070.0,0.598151]
[1752877693161,1.19766614,118080.0,118070.0,0.767419]
[1752877693360,0.83686614,118080.0,118070.0,0.767419]
[1752877693959,1.21553347,118080.0,118070.0,0.767419]
[1752877694160,0.85473347,118080.0,118070.0,0.74813806]
[1752877694657,0.85473347,118080.0,118070.0,1.01461599]
[1752877694860,0.73066347,118080.0,118070.0,1.01461599]
[1752877695168,0.44464859,118080.0,118070.0,1.37541599]
[1752877695359,0.44464859,118080.0,118070.0,1.01461599]
[1752877696067,0.80544859,118080.0,118070.0,1.01461599]
[1752877696269,0.42043859,118080.0,118070.0,1.01461599]
[1752877696770,0.44464859,118080.0,118070.0,1.01461599]
[1752877697569,0.80544859,118080.0,118070.0,1.01461599]
[1752877697765,0.3578924,118060.0,118050.0,0.30879973]
[1752877697968,0.49982973,118060.0,118050.0,0.8764474]
[1752877698163,0.49982973,118060.0,118050.0,1.2372474]
[1752877698676,0.49982973,118060.0,118050.0,0.8762874]
[1752877698874,0.56064584,118060.0,118050.0,1.14276533]
[1752877699063,0.49982973,118060.0,118050.0,1.14256533]
[1752877699268,0.86062973,118060.0,118050.0,0.26647793]
[1752877699468,0.3337111,118040.0,118030.0,2.06148078]
[1752877699670,0.35157843,118040.0,118030.0,2.72528078]
[1752877700466,0.35157843,118040.0,118030.0,2.73128078]
[1752877700767,0.2838524,118060.0,118050.0,0.1712967]
[1752877700965,0.34466851,118060.0,118050.0,1.10073463]
[1752877701165,0.39449851,118060.0,118050.0,1.10073463]
[1752877701368,0.39449851,118060.0,118050.0,0.43777463]
[1752877701566,0.22521611,118060.0,118050.0,1.09845463]
[1752877701965,0.22521611,118060.0,118050.0,1.45925463]
[1752877702269,8e-08,118080.0,118070.0,0.1692681]
[1752877702474,0.06166,118100.0,118090.0,0.1692394]
[1752877702675,0.06166,118100.0,118090.0,0.92939793]
[1752877702676,0.2550951,118100.0,118090.0,0.92939793]
[1752877702871,0.7281351,118100.0,118090.0,0.8321594]
[1752877703077,0.8427051,118100.0,118090.0,0.8321594]
[1752877703273,0.4819051,118100.0,118090.0,0.66292]
[1752877703673,0.8527051,118100.0,118090.0,0.66292]
[1752877704072,0.8537051,118100.0,118090.0,0.66292]
[1752877704479,0.92225548,118100.0,118090.0,0.66292]
[1752877704873,0.92276548,118100.0,118090.0,0.92939793]
[1752877705070,0.92276548,118100.0,118090.0,0.66292]
[1752877706378,0.92376548,118100.0,118090.0,0.66292]
[1752877708378,0.1810737,118080.0,118070.0,0.26647793]
[1752877708575,0.8497437,118080.0,118070.0,0.66]
[1752877708776,0.5400537,118080.0,118070.0,0.92647793]
[1752877708979,0.1692537,118080.0,118070.0,1.01110643]
[1752877709171,0.1692537,118080.0,118070.0,1.09573703]
[1752877709371,0.6924237,118080.0,118070.0,1.09573703]
[1752877709584,0.3661837,118080.0,118070.0,1.09673703]
[1752877709776,0.19693,118080.0,118070.0,1.09673703]
[1752877710080,0.19693,118080.0,118070.0,1.45753703]
[1752877710081,0.3661837,118080.0,118070.0,1.45753703]
[1752877710276,0.3661837,118080.0,118070.0,1.09673703]
[1752877710481,0.3661837,118080.0,118070.0,0.43673703]
[1752877710681,0.3661837,118080.0,118070.0,1.09573703]
[1752877711080,0.8397437,118080.0,118070.0,0.8288191]
[1752877711285,0.8397437,118080.0,118070.0,0.1702591]
[1752877711475,0.8397437,118080.0,118070.0,0.8288191]
[1752877711676,0.8397437,118080.0,118070.0,0.8278191]
[1752877712285,0.90060459,118080.0,118070.0,0.80853896]
[1752877712480,0.92056635,118080.0,118070.0,0.80853896]
[1752877712681,0.92056635,118080.0,118070.0,0.65856]
[1752877712884,0.92056635,118080.0,118070.0,0.827828]
[1752877713278,1.15056635,118080.0,118070.0,1.09430593]
[1752877714084,1.13160459,118080.0,118070.0,1.09430593]
[1752877714678,0.7610537,118080.0,118070.0,1.09430593]
[1752877714883,0.001,118080.0,118070.0,1.70510603]
[1752877715280,0.001,118080.0,118070.0,2.06590603]
[1752877715480,0.001,118080.0,118070.0,1.70510603]
[1752877716383,0.42288618,118100.0,118090.0,0.1692394]
[1752877716581,0.84454707,118100.0,118090.0,0.8277194]
[1752877716785,0.85636707,118100.0,118090.0,0.92495793]
[1752877716979,0.96912707,118100.0,118090.0,0.65848]
[1752877717575,0.96912707,118100.0,118080.0,0.26647793]
[1752877717576,0.2115918,118070.0,118050.0,0.66960003]
[1752877717781,0.1692872,118060.0,118050.0,0.2116056]
[1752877718084,0.3316572,118060.0,118050.0,1.13612353]
[1752877718286,0.3316572,118060.0,118050.0,1.13652353]
[1752877718589,0.3316572,118060.0,118050.0,0.47808353]
[1752877718788,0.3316572,118060.0,118050.0,1.13616353]
[1752877719081,0.3662172,118060.0,118050.0,1.13816353]
[1752877719280,0.3543972,118060.0,118050.0,1.13816353]
[1752877719677,0.3543972,118060.0,118050.0,1.13764353]
[1752877720082,0.3543972,118060.0,118050.0,1.13964353]
[1752877721483,0.4789772,118060.0,118050.0,0.1732967]
[1752877721790,0.91951933,118060.0,118050.0,0.66048]
[1752877721991,0.92865844,118060.0,118050.0,0.004]
[1752877722181,0.92865844,118060.0,118050.0,0.66356]
[1752877722488,0.98951933,118060.0,118050.0,0.66356]
[1752877722989,0.92865844,118060.0,118050.0,0.66156]
[1752877723386,1.00473294,118060.0,118050.0,0.66156]
[1752877723685,1.00973294,118060.0,118050.0,0.65956]
[1752877723889,1.01173294,118060.0,118050.0,0.65956]
[1752877725285,0.9167772,118060.0,118050.0,0.8288567]
[1752877725990,0.9167772,118060.0,118050.0,0.65956]
[1752877727893,0.9775471,118060.0,118050.0,0.65956]
[1752877728895,0.9775471,118060.0,118050.0,0.8288577]
[1752877729096,0.9775471,118060.0,118050.0,0.65956]
[1752877731094,0.9775471,118060.0,118040.0,0.56276243]
[1752877731095,0.4562478,118050.0,118040.0,0.56276243]
[1752877731295,0.4789878,118050.0,118040.0,1.21916243]
[1752877732196,0.4809878,118050.0,118040.0,1.21916243]
[1752877732893,0.4829878,118050.0,118040.0,1.21916243]
[1752877733099,0.4839878,118050.0,118040.0,1.21916243]
[1752877733400,0.4819878,118050.0,118040.0,1.21916243]
[1752877734588,0.16537,118050.0,118040.0,1.57996243]
[1752877734895,0.003,118050.0,118040.0,1.57996243]
[1752877735988,0.002,118050.0,118040.0,1.57996243]
[1752877736296,0.001,118050.0,118040.0,1.57996243]
[1752877738397,0.12126,118060.0,118050.0,0.1692984]
[1752877738591,0.12126,118060.0,118050.0,0.79657633]
[1752877738797,0.337004,118060.0,118050.0,0.79657633]
[1752877739103,0.16772,118060.0,118050.0,0.79657633]
[1752877739306,0.337004,118060.0,118050.0,0.79657633]
[1752877739903,0.338004,118060.0,118050.0,0.79657633]
[1752877745597,0.16872,118060.0,118050.0,0.79657633]
[1752877745802,0.3380043,118060.0,118050.0,0.79657633]
[1752877746003,0.3609543,118060.0,118050.0,0.79657633]
[1752877746405,0.3609543,118060.0,118050.0,1.96833633]
[1752877749009,0.3609543,118060.0,118050.0,1.92924256]
[1752877750212,0.3609543,118060.0,118050.0,1.7018584]
[1752877750410,0.3609543,118060.0,118050.0,1.92924256]
[1752877752508,0.19167,118060.0,118050.0,1.92924256]
[1752877753910,0.3609543,118060.0,118050.0,1.92924256]
[1752877754917,0.19167,118060.0,118050.0,1.92924256]
[1752877755511,0.19167,118060.0,118050.0,1.7018584]
[1752877755712,0.19167,118060.0,118050.0,1.92924256]
[1752877756716,0.19167,118060.0,118050.0,1.56844256]
[1752877756917,0.19167,118060.0,118050.0,1.92924256]
[1752877758318,0.12126,118070.0,118060.0,0.1692842]
[1752877758519,0.12126,118070.0,118060.0,1.40702836]
[1752877759025,0.16772,118070.0,118060.0,1.40702836]
[1752877760619,0.31803,118070.0,118060.0,1.41406836]
[1752877760821,0.31803,118070.0,118060.0,1.1866842]
[1752877761115,0.31803,118070.0,118060.0,1.41406836]
[1752877762211,0.31803,118070.0,118060.0,1.05366836]
[1752877762417,0.31803,118070.0,118060.0,1.41446836]
[1752877762612,0.31803,118070.0,118060.0,1.05366836]
[1752877762814,0.31803,118070.0,118060.0,1.1880442]
[1752877763122,0.31803,118070.0,118060.0,0.75746836]
[1752877763420,0.31803,118070.0,118060.0,1.41634836]
[1752877763619,0.4872999,118070.0,118060.0,1.41634836]
[1752877763922,0.31803,118070.0,118060.0,1.41634836]
[1752877764320,0.31803,118070.0,118060.0,1.05554836]
[1752877764517,0.4872997,118070.0,118060.0,1.41634836]
[1752877764920,0.4872997,118070.0,118060.0,0.39666836]
[1752877765219,0.4872997,118070.0,118060.0,1.05570836]
[1752877765426,0.4872997,118070.0,118060.0,1.41650836]
[1752877766822,0.4872997,118070.0,118060.0,1.05570836]
[1752877767519,0.31803,118070.0,118060.0,1.41650836]
[1752877768325,0.1064065,118090.0,118080.0,0.2505186]
[1752877768526,0.1064065,118090.0,118080.0,1.06608692]
[1752877768819,0.1297865,118090.0,118080.0,1.72904692]
[1752877769020,0.1297865,118090.0,118080.0,0.70528692]
[1752877769324,0.1297865,118090.0,118080.0,1.72888692]
[1752877770227,0.2990277,118090.0,118080.0,0.70528692]
[1752877770623,0.7814277,118090.0,118080.0,0.1786255]
[1752877770925,0.8421976,118090.0,118080.0,1.06812966]
[1752877771129,0.7814277,118090.0,118080.0,1.06812966]
[1752877771630,0.4206277,118090.0,118080.0,1.06812966]
[1752877771817,0.4206277,118090.0,118080.0,1.42892966]
[1752877772128,0.7844277,118090.0,118080.0,1.06812986]
[1752877772326,0.4236277,118090.0,118080.0,1.06813056]
[1752877772522,0.7844277,118090.0,118080.0,1.06813056]
[1752877772727,0.9944277,118090.0,118080.0,0.88950416]
[1752877773331,1.0551976,118090.0,118080.0,0.88950416]
[1752877773731,1.0551976,118090.0,118080.0,1.05876056]
[1752877773936,1.0551976,118090.0,118080.0,0.39664056]
[1752877774228,1.0551976,118090.0,118080.0,0.89126416]
[1752877774433,1.0551976,118090.0,118080.0,1.06052096]
[1752877774629,1.0551976,118090.0,118080.0,0.66388]
[1752877774935,1.0551976,118090.0,118080.0,1.06052096]
[1752877775336,1.0551976,118090.0,118080.0,0.66388]
[1752877775633,1.0551976,118090.0,118080.0,0.89126416]
[1752877775828,1.0551976,118090.0,118080.0,0.22738416]
[1752877776039,1.07411743,118090.0,118080.0,0.88958416]
[1752877776629,1.0551976,118090.0,118080.0,0.88958416]
[1752877776837,0.9944277,118090.0,118080.0,0.88958416]
[1752877777534,0.9944277,118090.0,118080.0,1.05884146]
[1752877778036,1.05530691,118090.0,118080.0,1.05884146]
[1752877778226,1.05530691,118090.0,118080.0,0.88958416]
[1752877778431,1.05530931,118090.0,118080.0,0.66244]
[1752877778631,1.0553105,118090.0,118080.0,1.05908146]
[1752877778937,0.9944277,118090.0,118080.0,1.05908146]
[1752877779137,1.05531131,118090.0,118080.0,0.88982416]
[1752877780332,1.05531131,118090.0,118080.0,0.22738416]
[1752877780638,0.4855317,118070.0,118060.0,0.2166161]
[1752877780838,1.0563317,118070.0,118060.0,1.10560026]
[1752877781144,1.11722495,118070.0,118060.0,0.93647416]
[1752877781335,1.11722495,118070.0,118060.0,1.10576026]
[1752877781740,1.11722495,118070.0,118060.0,1.10676026]
[1752877782742,1.11722495,118070.0,118060.0,1.10776026]
[1752877783343,1.11722495,118070.0,118060.0,1.10576026]
[1752877783639,1.11722495,118070.0,118060.0,0.8783761]
[1752877783844,1.11722495,118070.0,118060.0,1.10576026]
[1752877784939,1.11722495,118070.0,118060.0,0.70909]
[1752877785235,1.11722495,118070.0,118050.0,1.17156]
[1752877785236,0.4855461,118060.0,118050.0,1.17156]
[1752877785435,1.30373026,118060.0,118050.0,1.83068]
[1752877785846,1.0763461,118060.0,118050.0,1.83068]
[1752877787039,1.30373026,118060.0,118050.0,1.83068]
[1752877788141,1.36461417,118060.0,118050.0,1.83068]
[1752877789848,1.36761417,118060.0,118050.0,1.83068]
[1752877790249,1.36761417,118060.0,118050.0,0.65912]
[1752877790749,0.4855891,118030.0,118020.0,0.67060117]
[1752877790949,0.4855891,118030.0,118020.0,1.22348533]
[1752877791753,0.4855891,118030.0,118020.0,1.58428533]
[1752877792350,0.4855891,118030.0,118020.0,1.22348533]
[1752877792647,0.50415495,118030.0,118020.0,1.22348533]
[1752877792847,0.50415495,118030.0,118020.0,1.22548533]
[1752877793048,0.50415495,118030.0,118020.0,1.22748533]
[1752877793854,0.50415495,118030.0,118020.0,0.26647117]
[1752877794046,0.50415495,118030.0,118020.0,0.9600482]
[1752877794651,0.50415495,118030.0,118020.0,1.18743236]
[1752877795554,0.50415495,118030.0,118020.0,1.18543236]
[1752877795753,0.50415495,118030.0,118020.0,1.18643236]
[1752877796151,0.55454504,118030.0,118020.0,1.18643236]
[1752877796357,0.55454504,118030.0,118020.0,1.18543236]
[1752877797256,0.55454504,118030.0,118020.0,1.19395185]
[1752877798658,0.55454504,118030.0,118020.0,1.18543236]
[1752877800660,0.55454504,118030.0,118020.0,1.21501236]
[1752877801059,0.24023594,118030.0,118020.0,1.58419508]
[1752877801255,0.11643594,118030.0,118020.0,1.58419508]
[1752877801563,0.06895594,118030.0,118020.0,1.58419508]
[1752877801855,0.3578867,118040.0,118030.0,0.2462392]
[1752877802058,0.18857,118040.0,118030.0,0.83442336]
[1752877805862,0.18857,118040.0,118030.0,0.6070392]
[1752877805863,0.42610825,118040.0,118030.0,0.6070392]
[1752877806063,0.25679345,118040.0,118030.0,0.83442336]
[1752877807464,0.11366345,118040.0,118030.0,0.83442336]
[1752877808558,0.23420345,118040.0,118030.0,0.83442336]
[1752877808755,0.23420345,118040.0,118030.0,0.6070392]
[1752877808960,0.23420345,118040.0,118030.0,0.83442336]
[1752877810567,0.25679345,118040.0,118030.0,0.83442336]
[1752877812268,0.23420345,118040.0,118030.0,0.83442336]
[1752877815264,0.25679345,118040.0,118030.0,0.83442336]
[1752877815466,0.23420345,118040.0,118030.0,0.83442336]
[1752877817367,0.23420345,118040.0,118030.0,0.47362336]
[1752877817671,0.06822345,118040.0,118030.0,1.42260752]
[1752877817867,0.16598,118050.0,118040.0,0.1693148]
[1752877818067,0.16598,118050.0,118040.0,1.71223312]
[1752877819474,0.16598,118050.0,118040.0,2.88423312]
[1752877819772,0.23545135,118050.0,118040.0,2.88423312]
[1752877820174,0.06947135,118050.0,118040.0,2.88423312]
[1752877820374,0.2147263,118060.0,118050.0,0.1693005]
[1752877820576,0.3578563,118060.0,118050.0,0.83439466]
[1752877820777,0.4776663,118060.0,118050.0,1.2560505]
[1752877821272,0.4776663,118060.0,118050.0,1.48343466]
[1752877821773,0.4806663,118060.0,118050.0,1.48343466]
[1752877824580,0.54895682,118060.0,118050.0,1.48343466]
[1752877827884,0.37967052,118060.0,118050.0,1.48343466]
[1752877828080,0.54895662,118060.0,118050.0,1.48343466]
[1752877828875,0.54895662,118060.0,118050.0,1.2560505]
[1752877829081,0.54895662,118060.0,118050.0,1.48343466]
[1752877829783,0.54895662,118060.0,118050.0,1.2560505]
[1752877830082,0.54895662,118060.0,118050.0,1.48343466]
[1752877831683,0.37967052,118060.0,118050.0,1.48343466]
[1752877832379,0.25986052,118060.0,118050.0,1.48343466]